{"text_format":"1","workbook":"xlsx","n_sheets":3,"sheets":["Feuil1","Feuil2","Feuil3"],"not_rendered":{"charts":0,"images":0,"macros":1,"external_links":0,"defined_names":0,"comments":0,"pivot_tables":0},"unopened":[],"bounds":{"document_bytes":16777216,"sheet_cells":100000,"rows_first":2000,"rows_last":500,"rows_between":2000,"halvings":0,"cell_chars":16384,"cell_head_chars":4096},"cells_cut":0,"cells_raw":0,"read":"whole","date_system":"1900"}

{"sheet":"Feuil1","index":0,"n_rows":23,"n_cols":41,"rows_kept":23,"cut":false,"hidden":false,"merged":[[3,2,3,37]]}
[null,null,2,null,null,null,null,null,null,null,null,null,null,null,null,null,null,null,null,null,null,null,null,null,null,null,null,null,null,null,null,null,null,null,null,null,null,null,null,"janvier",2020]
[null,null,null,null,null,null,null,null,null,null,null,null,null,null,null,null,null,null,null,null,null,null,null,null,null,null,null,null,null,null,null,null,null,null,null,null,null,null,null,"février",2021]
[null,null,2,null,{"$f":"DATE(C3+2019,C1,1)","v":"2021-02-01"},{"$f":"DATE(C3+2019,C1+1,1)-1","v":"2021-02-28"},null,null,null,null,null,null,null,null,null,null,null,null,null,null,null,null,null,null,null,null,null,null,null,null,null,null,null,null,null,null,null,null,null,"mars",2022]
[null,null,{"$f":"\"Période du \"&TEXT(E3,\" jj mmmm aaaa\")&\" au \"&TEXT(F3,\" jj mmmm aaaa\")","v":"Période du  01 février 2021 au  28 février 2021"},null,null,null,null,null,null,null,null,null,null,null,null,null,null,null,null,null,null,null,null,null,null,null,null,null,null,null,null,null,null,null,null,null,null,null,null,"avril"]
[null,null,null,null,null,null,null,null,null,null,null,null,null,null,null,null,null,null,null,null,null,null,null,null,null,null,null,null,null,null,null,null,null,null,null,null,null,null,null,"mai"]
[null,null,"STAGIAIRE","DEBUT","FIN","AFFECTATION","TUTEUR",{"$f":"E3","v":"2021-02-01"},{"$f":"H6+1","v":"2021-02-02"},"2021-02-03","2021-02-04","2021-02-05","2021-02-06","2021-02-07","2021-02-08","2021-02-09","2021-02-10","2021-02-11","2021-02-12","2021-02-13","2021-02-14","2021-02-15","2021-02-16","2021-02-17","2021-02-18","2021-02-19","2021-02-20","2021-02-21","2021-02-22","2021-02-23","2021-02-24","2021-02-25",{"$f":"AF6+1","v":"2021-02-26"},"2021-02-27","2021-02-28","2021-03-01","2021-03-02","2021-03-03",null,"juin"]
[null,null,1,"2021-03-08","2021-03-27","DG",null,null,null,null,null,null,null,null,null,null,null,null,null,null,null,null,null,null,null,null,null,null,null,null,null,null,null,null,null,null,null,null,null,"juillet"]
[null,null,2,"2021-05-17","2021-07-17","cabinet","Alexis R",null,null,null,null,null,null,null,null,null,null,null,null,null,null,null,null,null,null,null,null,null,null,null,null,null,null,null,null,null,null,null,null,"août"]
[null,null,3,"2021-05-25","2021-07-02","cabinet","Marie Liesse C",null,null,null,null,null,null,null,null,null,null,null,null,null,null,null,null,null,null,null,null,null,null,null,null,null,null,null,null,null,null,null,null,"septembre"]
[null,null,4,"2021-05-25","2021-07-02","DG",null,null,null,null,null,null,null,null,null,null,null,null,null,null,null,null,null,null,null,null,null,null,null,null,null,null,null,null,null,null,null,null,null,"octobre"]
[null,null,5,"2021-06-07","2021-06-18","DG",null,null,null,null,null,null,null,null,null,null,null,null,null,null,null,null,null,null,null,null,null,null,null,null,null,null,null,null,null,null,null,null,null,"novembre"]
[null,null,6,"2021-06-30","2021-07-06","DG",null,null,null,null,null,null,null,null,null,null,null,null,null,null,null,null,null,null,null,null,null,null,null,null,null,null,null,null,null,null,null,null,null,"décembre"]
[null,null,7,"2021-07-19","2021-09-04","cabinet","Alexis R"]
[null,null,8,"2021-08-23","2021-08-31","cabinet","Raphael G"]
[null,null,9,"2021-09-06","2022-02-04","cabinet","Raphael G"]
[null,null,10,"2021-10-22","2021-12-23","cabinet","Alexis R"]
[null,null,11,"2021-12-13","2021-12-17","DG"]
[null,null,12,"2022-01-10","2022-03-04","cabinet","Alexis R"]
[null,null,13,"2022-01-18","2022-02-04","DG"]
[null,null,14,"2022-01-31","2022-02-04","DG"]
[null,null,15,"2022-01-31","2022-03-25","cabinet","Alexis R"]
[null,null,16,"2022-02-01","2022-07-31","cabinet","Raphael G"]
[null,null,17,"2022-05-02","2022-07-01","cabinet","Alexis R"]

{"sheet":"Feuil2","index":1,"n_rows":0,"n_cols":0,"rows_kept":0,"cut":false,"hidden":false,"merged":[]}

{"sheet":"Feuil3","index":2,"n_rows":0,"n_cols":0,"rows_kept":0,"cut":false,"hidden":false,"merged":[]}